bitfinex/quotes_BTCUSD_20211001
["timestamp","ask_amount","ask_price","bid_price","bid_amount"]
[1633101528713,0.00067752,47358.0,47357.0,0.24889421]
[1633101530513,0.00067752,47358.0,47357.0,0.28289421]
[1633101531115,0.00067752,47358.0,47357.0,0.034]
[1633101531916,0.00067752,47358.0,47356.0,1.45050469]
[1633101532114,0.00067752,47358.0,47357.0,0.034]
[1633101532314,0.00067752,47358.0,47357.0,0.20988062]
[1633101532315,0.0004,47358.0,47357.0,0.20988062]
[1633101532915,0.0004,47358.0,47357.0,0.17588062]
[1633101533386,0.0004,47358.0,47356.0,0.84573202]
[1633101533715,0.00026546,47357.0,47356.0,0.83517816]
[1633101533917,0.00026546,47357.0,47356.0,1.15944227]
[1633101534118,0.00026546,47357.0,47356.0,1.45989858]
[1633101534514,0.00026546,47357.0,47356.0,1.42389858]
[1633101535716,0.00026546,47357.0,47356.0,1.34684276]
[1633101535923,0.0012,47362.0,47356.0,1.34684276]
[1633101535924,0.0004,47365.0,47358.0,0.00128709]
[1633101536123,0.0004,47365.0,47364.0,0.00255637]
[1633101536386,0.0004,47365.0,47364.0,0.327522]
[1633101536520,0.0004,47365.0,47364.0,0.02115637]
[1633101536523,0.00049651,47365.0,47364.0,0.02115637]
[1633101536923,0.00049651,47365.0,47364.0,0.00126909]
[1633101537118,0.00049651,47365.0,47363.0,0.61884453]
[1633101537120,0.00058134,47365.0,47363.0,0.61884453]
[1633101537319,0.07312128,47366.0,47363.0,0.61884453]
[1633101537921,0.0008,47366.0,47363.0,0.61884453]
[1633101538123,0.0008,47366.0,47363.0,0.64684453]
[1633101538124,0.0178,47366.0,47363.0,0.64684453]
[1633101538329,0.0128,47366.0,47363.0,0.64684453]
[1633101539425,0.0008,47367.0,47363.0,0.61884453]
[1633101540021,0.0138,47367.0,47363.0,0.65184453]
[1633101540221,0.0138,47367.0,47363.0,0.73777373]
[1633101540423,0.0138,47367.0,47363.0,0.65184453]
[1633101541422,0.0138,47367.0,47364.0,0.37412215]
[1633101541623,0.0138,47367.0,47365.0,0.316573]
[1633101541624,0.0008,47367.0,47365.0,0.316573]
[1633101542022,0.0098,47367.0,47365.0,0.316573]
[1633101542426,0.0098,47367.0,47366.0,0.47145779]
[1633101542624,0.0098,47367.0,47366.0,0.47276284]
[1633101542826,0.0098,47367.0,47366.0,0.49961381]
[1633101543023,0.0098,47367.0,47366.0,0.24307678]
[1633101543226,0.0098,47367.0,47366.0,0.50623826]
[1633101543423,0.0098,47367.0,47366.0,0.24307678]
[1633101543623,0.0012,47368.0,47367.0,1.25]
[1633101543825,0.0012,47368.0,47367.0,0.24306666]
[1633101544024,0.0016,47385.0,47368.0,2.0]
[1633101544228,0.0016,47385.0,47379.0,0.00121441]
[1633101544425,0.0016,47385.0,47379.0,0.31691612]
[1633101544623,0.0016,47385.0,47379.0,0.57393261]
[1633101544624,0.00098091,47380.0,47379.0,0.57393261]
[1633101544824,0.00098091,47380.0,47379.0,0.31691612]
[1633101545022,0.00098091,47380.0,47379.0,0.54011612]
[1633101545224,0.00098091,47380.0,47379.0,0.62092813]
[1633101545425,0.00098091,47380.0,47379.0,0.54011612]
[1633101546026,0.00098091,47380.0,47379.0,0.57511612]
[1633101546225,0.00098091,47380.0,47379.0,0.83235796]
[1633101546426,0.00098091,47380.0,47379.0,0.35191612]
[1633101546625,0.00098091,47380.0,47379.0,0.24908171]
[1633101547426,0.00098091,47380.0,47379.0,0.21408171]
[1633101547627,0.00107063,47380.0,47379.0,0.21408171]
[1633101548026,0.00107063,47380.0,47379.0,0.24908171]
[1633101548627,7.063e-05,47383.0,47379.0,0.24908171]
[1633101548827,7.063e-05,47383.0,47381.0,0.316464]
[1633101549625,7.063e-05,47383.0,47381.0,0.30592502]
[1633101550027,7.063e-05,47383.0,47381.0,0.34092502]
[1633101550430,0.00177098,47382.0,47381.0,0.035]
[1633101550628,0.00124111,47382.0,47381.0,0.035]
[1633101551030,7.063e-05,47383.0,47381.0,0.035]
[1633101551231,7.063e-05,47383.0,47382.0,0.32337808]
[1633101551433,7.063e-05,47383.0,47382.0,0.31771083]
[1633101552030,7.063e-05,47383.0,47382.0,0.43151654]
[1633101552633,7.063e-05,47383.0,47382.0,0.36071571]
[1633101553432,7.063e-05,47383.0,47382.0,0.32371571]
[1633101554033,7.063e-05,47383.0,47382.0,0.35771571]
[1633101554235,7.063e-05,47383.0,47382.0,0.58091571]
[1633101554432,7.063e-05,47383.0,47382.0,0.95527661]
[1633101554632,7.063e-05,47383.0,47382.0,0.69667264]
[1633101555234,7.063e-05,47383.0,47382.0,1.03564951]
[1633101555430,7.063e-05,47383.0,47382.0,0.69667264]
[1633101555632,7.063e-05,47383.0,47382.0,0.59951571]
[1633101556032,7.063e-05,47383.0,47382.0,0.63351571]
[1633101556231,7.063e-05,47383.0,47382.0,0.59951571]
[1633101556834,3.00007063,47383.0,47382.0,0.59951571]
[1633101557034,3.00007063,47383.0,47382.0,0.37631571]
[1633101557733,3.00007063,47383.0,47382.0,0.34231571]
[1633101558133,3.00015405,47383.0,47382.0,0.37731571]
[1633101558734,3.00015405,47383.0,47382.0,0.37603488]
[1633101559132,3.00015405,47383.0,47382.0,0.37003]
[1633101559133,2.97515405,47383.0,47382.0,0.37003]
[1633101559736,0.72760402,47383.0,47382.0,0.82189134]
[1633101559942,0.0016,47384.0,47382.0,2.08311323]
[1633101560134,0.0016,47384.0,47383.0,0.00124366]
[1633101560414,0.0016,47384.0,47383.0,0.01984366]
[1633101560536,0.0056,47392.0,47383.0,0.0186]
[1633101560537,0.121121,47388.0,47383.0,0.0186]
[1633101560736,0.00052987,47387.0,47384.0,0.08998058]
[1633101560934,0.00052987,47387.0,47382.0,0.035]
[1633101560935,0.121121,47388.0,47382.0,0.035]
[1633101561134,0.121121,47388.0,47384.0,0.421909]
[1633101561135,6.03e-05,47385.0,47384.0,0.421909]
[1633101561334,6.03e-05,47385.0,47384.0,0.42976742]
[1633101561934,6.03e-05,47385.0,47384.0,0.43105766]
[1633101562134,6.03e-05,47385.0,47384.0,0.46705766]
[1633101562533,6.03e-05,47385.0,47384.0,0.45919924]
[1633101562733,6.03e-05,47385.0,47384.0,0.457909]
[1633101563335,6.03e-05,47385.0,47384.0,0.46517443]
[1633101563539,6.03e-05,47385.0,47384.0,0.42917443]
[1633101564242,6.03e-05,47385.0,47379.0,0.21286965]
[1633101564243,0.10546609,47380.0,47372.0,0.3243]
[1633101564441,0.26097085,47379.0,47360.0,0.11499258]
[1633101564642,0.00123115,47368.0,47360.0,0.11499258]
[1633101564838,0.00123115,47368.0,47364.0,0.316589]
[1633101565037,0.00123115,47368.0,47367.0,0.0001327]
[1633101565239,0.32516783,47368.0,47367.0,0.0001327]
[1633101565439,0.82835453,47368.0,47367.0,0.0001327]
[1633101566042,1.15493292,47368.0,47367.0,0.0001327]
[1633101566239,1.15493292,47368.0,47367.0,0.0291327]
[1633101566240,1.39285392,47368.0,47367.0,0.0291327]
[1633101566441,1.70951092,47368.0,47367.0,0.0291327]
[1633101566639,1.70951092,47368.0,47367.0,0.02186727]
[1633101567638,1.70951092,47368.0,47356.0,0.423593]
[1633101567639,1.68951092,47368.0,47356.0,0.423593]
[1633101567842,0.27747037,47357.0,47356.0,0.423593]
[1633101568241,0.53840763,47357.0,47356.0,0.44772573]
[1633101568743,0.78206024,47357.0,47356.0,0.44772573]
[1633101568940,1.00526024,47357.0,47356.0,0.44772573]
[1633101569144,1.21871111,47357.0,47356.0,0.44772573]
[1633101569404,1.21996233,47357.0,47356.0,0.44772573]
[1633101569545,1.21996233,47357.0,47356.0,0.42372573]
[1633101569751,0.5492132,47357.0,47356.0,0.42372573]
[1633101569940,0.3260132,47357.0,47356.0,0.42372573]
[1633101570340,0.3260132,47357.0,47356.0,0.44172573]
[1633101570341,0.5782132,47357.0,47356.0,0.44172573]
[1633101570542,0.7961342,47357.0,47356.0,0.44172573]
[1633101570940,0.80671991,47357.0,47356.0,0.44172573]
[1633101571540,0.77771991,47357.0,47356.0,0.42372573]
[1633101571744,0.77719004,47357.0,47356.0,0.42372573]
[1633101572402,0.81519004,47357.0,47356.0,0.42372573]
[1633101573342,0.8002181,47357.0,47356.0,0.42372573]
[1633101573741,0.7622181,47357.0,47356.0,0.42372573]
[1633101574341,0.7992181,47357.0,47356.0,0.42372573]
[1633101574745,0.57474017,47357.0,47356.0,0.42372573]
[1633101575443,0.79794017,47357.0,47356.0,0.42372573]
[1633101575643,0.57474017,47357.0,47356.0,0.42372573]
[1633101576044,0.53774017,47357.0,47356.0,0.42372573]
[1633101576246,0.55474017,47357.0,47356.0,0.43772573]
[1633101577446,0.017,47357.0,47356.0,0.43772573]
[1633101577646,0.211113,47359.0,47356.0,0.43772573]
[1633101577647,0.211113,47359.0,47356.0,0.49884925]
[1633101578044,0.211113,47359.0,47358.0,0.00010859]
[1633101578444,0.45096266,47359.0,47358.0,0.00010859]
[1633101578844,0.230113,47359.0,47358.0,0.00010859]
[1633101579047,0.51391948,47359.0,47358.0,0.00010859]
[1633101579847,0.70687559,47359.0,47358.0,0.00010859]
[1633101580446,0.70687559,47359.0,47358.0,0.02210859]
[1633101580447,0.73587559,47359.0,47358.0,0.02210859]
[1633101581249,0.52391948,47359.0,47358.0,0.02210859]
[1633101581910,0.74184048,47359.0,47358.0,0.02210859]
[1633101582309,0.69998386,47359.0,47358.0,0.01510859]
[1633101582711,0.69945399,47359.0,47358.0,0.01510859]
[1633101583712,0.67145399,47359.0,47358.0,0.00010859]
[1633101584518,0.70045399,47359.0,47358.0,0.01510859]
[1633101585714,0.66645399,47359.0,47358.0,0.00010859]
[1633101586315,0.69545399,47359.0,47358.0,0.01210859]
[1633101587516,0.94535399,47359.0,47358.0,0.01210859]
[1633101587718,0.91635399,47359.0,47358.0,0.00010859]
[1633101588317,0.91635399,47359.0,47358.0,0.01510859]
[1633101588318,0.92935399,47359.0,47358.0,0.01510859]
[1633101588720,0.64554751,47359.0,47358.0,0.01510859]
[1633101589118,0.39564751,47359.0,47358.0,0.01510859]
[1633101590121,0.39564751,47359.0,47358.0,0.00010859]
[1633101590123,0.63254751,47359.0,47358.0,0.00010859]
[1633101590322,0.98714258,47359.0,47358.0,0.00010859]
[1633101590519,0.98714258,47359.0,47358.0,0.01610859]
[1633101590520,1.00214258,47359.0,47358.0,0.01610859]
[1633101591322,0.75224258,47359.0,47358.0,0.01610859]
[1633101591920,0.75224258,47359.0,47358.0,0.00010859]
[1633101591921,0.73724258,47359.0,47358.0,0.00010859]
[1633101592522,0.73724258,47359.0,47358.0,0.02010859]
[1633101592524,0.74824258,47359.0,47358.0,0.02010859]
[1633101593321,3.74824258,47359.0,47358.0,0.02010859]
[1633101594130,3.73724258,47359.0,47358.0,0.00010859]
[1633101594528,3.74924258,47359.0,47358.0,0.01410859]
[1633101595925,3.74924258,47359.0,47358.0,0.03359841]
[1633101595926,3.73724258,47359.0,47358.0,0.03359841]
[1633101596124,3.95516358,47359.0,47358.0,0.00010859]
[1633101596524,3.95516358,47359.0,47358.0,0.01310859]
[1633101596526,3.96616358,47359.0,47358.0,0.01310859]
[1633101596724,3.96616358,47359.0,47358.0,0.04660521]
[1633101597327,3.74824258,47359.0,47358.0,0.04660521]
[1633101597923,3.74824258,47359.0,47358.0,0.03360521]
[1633101597924,3.73724258,47359.0,47358.0,0.03360521]
[1633101598126,3.73724258,47359.0,47358.0,5.00010859]
[1633101598324,3.73724258,47359.0,47358.0,5.03358642]
[1633101598525,3.76624258,47359.0,47358.0,5.04858642]
[1633101599125,3.58970807,47359.0,47358.0,5.04858642]
[1633101599927,3.83960807,47359.0,47358.0,5.04858642]
[1633101600129,4.08442767,47359.0,47358.0,5.04858642]
[1633101600331,4.33432767,47359.0,47358.0,5.04858642]
[1633101600728,4.08950807,47359.0,47358.0,5.04858642]
[1633101601130,4.09072508,47359.0,47358.0,5.04858642]
[1633101601529,3.58970807,47359.0,47358.0,5.04858642]
[1633101601947,3.009,47359.0,47358.0,5.27004494]
[1633101602130,3.009,47359.0,47358.0,5.39108409]
[1633101602330,3.009,47359.0,47358.0,5.49141176]
[1633101602533,3.009,47359.0,47358.0,5.52441176]
[1633101602534,3.2619,47359.0,47358.0,5.52441176]
[1633101602934,3.2619,47359.0,47358.0,5.07984494]
[1633101603133,3.2619,47359.0,47358.0,5.07858642]
[1633101603536,3.2619,47359.0,47358.0,5.40199331]
[1633101603933,3.2619,47359.0,47358.0,5.35693066]
[1633101603935,3.0,47359.0,47358.0,5.35693066]
[1633101604336,3.0,47359.0,47358.0,5.13373066]
[1633101604535,3.0,47359.0,47358.0,5.16873066]
[1633101604735,3.0,47359.0,47358.0,5.26462959]
[1633101605235,3.0,47359.0,47358.0,5.16448535]
[1633101606237,3.0,47359.0,47358.0,5.35400702]
[1633101606437,3.0,47359.0,47358.0,5.36135714]
[1633101606635,3.0,47359.0,47358.0,5.17483547]
[1633101607535,3.0,47359.0,47358.0,5.07158642]
[1633101607736,3.0,47359.0,47358.0,5.06103021]
[1633101608135,3.0,47359.0,47358.0,5.02303021]
[1633101608536,3.015,47359.0,47358.0,5.14947124]
[1633101608734,3.015,47359.0,47358.0,5.05403021]
[1633101609335,3.015,47359.0,47358.0,5.37143982]
[1633101609938,3.0,47359.0,47358.0,5.34043982]
[1633101610541,3.0,47359.0,47358.0,5.02379682]
[1633101610738,3.0,47359.0,47358.0,5.05579682]
[1633101610740,3.012,47359.0,47358.0,5.05579682]
[1633101611340,3.012,47359.0,47358.0,5.02231899]
[1633101611552,3.33407416,47359.0,47358.0,5.02231899]
[1633101611739,3.35267416,47359.0,47358.0,5.02231899]
[1633101611941,3.35267416,47359.0,47358.0,4.99031899]
[1633101611942,3.56387416,47359.0,47358.0,4.99031899]
[1633101612142,4.41387416,47359.0,47358.0,0.00076661]
[1633101612338,4.41387416,47359.0,47343.0,0.1666]
[1633101612340,0.316752,47353.0,47343.0,0.1666]
[1633101612542,0.35375855,47352.0,47343.0,0.1666]
[1633101612741,0.07480037,47347.0,47344.0,0.03406357]
[1633101612945,0.30688004,47345.0,47344.0,0.03406357]
[1633101613145,0.59206298,47345.0,47344.0,0.03406357]
[1633101613341,0.59153311,47345.0,47344.0,0.03406357]
[1633101613544,0.80945411,47345.0,47344.0,0.03406357]
[1633101613940,0.59153311,47345.0,47344.0,0.03406357]
[1633101614745,0.59153311,47345.0,47344.0,0.025]
[1633101614746,0.62053311,47345.0,47344.0,0.025]
[1633101614943,0.00052987,47350.0,47344.0,0.025]
[1633101614944,1.7e-06,47361.0,47359.0,0.94682795]
[1633101615144,0.527956,47374.0,47359.0,0.94682795]
[1633101615147,0.5675,47381.0,47378.0,3.13554822]
[1633101615359,0.18394645,47393.0,47378.0,3.13554822]
[1633101615361,10.0054,47395.0,47389.0,0.65301493]
[1633101615549,5.03825906,47395.0,47393.0,0.00122306]
[1633101615761,0.00156454,47398.0,47393.0,0.00122306]
[1633101615762,0.1005,47410.0,47403.0,0.2471]
[1633101615960,0.0008,47416.0,47413.0,0.37246911]
[1633101616145,0.101,47420.0,47409.0,0.00435407]
[1633101616342,0.101,47420.0,47415.0,0.00120162]
[1633101616739,0.101,47420.0,47410.0,0.0182]
[1633101616740,0.133,47420.0,47410.0,0.0182]
[1633101616943,0.11003672,47414.0,47410.0,0.0182]
[1633101617144,1.65,47411.0,47410.0,0.0133301]
[1633101617353,0.217921,47411.0,47409.0,0.020125]
[1633101617542,0.05013101,47412.0,47409.0,0.020125]
[1633101617543,0.05013101,47412.0,47409.0,0.019725]
[1633101617743,0.11185436,47414.0,47409.0,0.019325]
[1633101617744,0.00054238,47410.0,47409.0,0.019325]
[1633101617944,0.00054238,47410.0,47409.0,0.01866]
[1633101618141,0.00054238,47410.0,47409.0,0.01826]
[1633101618545,0.1055791,47414.0,47409.0,6e-05]
[1633101618743,0.03,47410.0,47409.0,0.01352035]
[1633101618942,0.015,47410.0,47409.0,0.01352035]
[1633101619143,0.015,47410.0,47409.0,0.01312035]
[1633101619542,0.015,47410.0,47409.0,0.01232035]
[1633101619947,0.2499,47413.0,47409.0,0.0182]
[1633101620142,0.2499,47413.0,47407.0,0.42131]
[1633101620344,0.2499,47413.0,47411.0,0.316282]
[1633101620543,0.2499,47413.0,47411.0,0.315082]
[1633101620544,0.082917,47412.0,47411.0,0.315082]
[1633101620942,0.082917,47412.0,47411.0,0.314282]
[1633101621144,0.082917,47412.0,47411.0,0.313882]
[1633101621344,0.082917,47412.0,47411.0,0.313082]
[1633101621544,0.082917,47412.0,47411.0,0.312682]
[1633101621745,0.082917,47412.0,47411.0,0.311882]
[1633101622142,0.082917,47412.0,47411.0,0.311082]
[1633101622543,0.082917,47412.0,47411.0,0.310282]
[1633101622742,0.082917,47412.0,47411.0,0.0346]
[1633101623142,0.082917,47412.0,47411.0,0.0334]
[1633101623543,0.4998,47413.0,47411.0,0.0382238]
[1633101623745,0.4998,47413.0,47411.0,0.0326]
[1633101623949,0.4998,47413.0,47411.0,0.0318]
[1633101624146,0.00164283,47412.0,47411.0,0.0318]
[1633101624347,0.00217293,47412.0,47411.0,0.0318]
[1633101624548,0.00217293,47412.0,47409.0,0.0186]
[1633101624550,0.0830134,47412.0,47409.0,0.0186]
[1633101624745,0.0830134,47412.0,47411.0,0.034]
[1633101624746,0.0900134,47412.0,47411.0,0.034]
[1633101624943,0.0900134,47412.0,47411.0,0.0336]
[1633101625343,0.0900134,47412.0,47411.0,0.0328]
[1633101625942,0.0894833,47412.0,47411.0,0.032]
[1633101626146,0.0824833,47412.0,47409.0,0.00806063]
[1633101626343,0.0009301,47411.0,47409.0,0.00806063]
[1633101626544,0.0004,47411.0,47409.0,0.00806063]
[1633101626743,0.0004,47411.0,47409.0,0.03606063]
[1633101626943,0.0005301,47410.0,47409.0,0.03606063]
[1633101627348,0.0004,47411.0,47409.0,0.03606063]
[1633101627548,0.0004,47411.0,47409.0,0.09931805]
[1633101628149,0.0004,47411.0,47409.0,0.07131805]
[1633101628347,0.0004,47411.0,47409.0,0.38761905]
[1633101628746,0.0004,47411.0,47409.0,0.42261905]
[1633101629966,0.0004,47411.0,47403.0,0.2471]
[1633101629968,0.0004,47411.0,47393.0,0.27544401]
[1633101629970,0.036283,47403.0,47393.0,0.27544401]
[1633101630170,0.00129629,47401.0,47400.0,0.33783539]
[1633101630351,0.36699583,47401.0,47400.0,0.33783539]
[1633101630550,0.00121537,47401.0,47400.0,0.33783539]
[1633101630747,0.00121537,47401.0,47400.0,0.36883539]
[1633101630748,0.012,47401.0,47400.0,0.36883539]
[1633101630950,0.11162885,47401.0,47400.0,0.36883539]
[1633101631149,0.23457387,47401.0,47400.0,0.36883539]
[1633101631350,0.13503613,47401.0,47400.0,0.36883539]
[1633101631549,0.01209111,47401.0,47400.0,0.36883539]
[1633101632148,0.01209111,47401.0,47400.0,0.33783539]
[1633101632149,9.111e-05,47401.0,47400.0,0.33783539]
[1633101632348,9.111e-05,47401.0,47400.0,0.41022645]
[1633101632549,9.111e-05,47401.0,47400.0,0.33783539]
[1633101632749,9.111e-05,47401.0,47400.0,0.37783539]
[1633101632750,0.24999111,47401.0,47400.0,0.37783539]
[1633101632949,0.24999111,47401.0,47400.0,0.42783539]
[1633101633955,9.111e-05,47401.0,47400.0,0.42783539]
[1633101634159,0.08259718,47410.0,47400.0,0.42783539]
[1633101634162,0.0004,47409.0,47400.0,0.42783539]
[1633101634355,1.97805818,47411.0,47400.0,0.38783539]
[1633101634555,1.97805818,47411.0,47408.0,0.21088]
[1633101634754,1.97805818,47411.0,47410.0,0.00123807]
[1633101634756,1.75469034,47411.0,47410.0,0.00123807]
[1633101634958,1.75598123,47411.0,47410.0,0.00123807]
[1633101635351,1.75598123,47411.0,47408.0,0.21088]
[1633101635352,1.33414723,47411.0,47408.0,0.21088]
[1633101635758,5.2502,47425.0,47411.0,0.12090318]
[1633101635954,5.2502,47425.0,47417.0,0.00124879]
[1633101635955,4.957557,47425.0,47417.0,0.00124879]
[1633101636154,4.957557,47425.0,47418.0,0.31698447]
[1633101636354,4.957557,47425.0,47418.0,0.19931765]
[1633101636357,0.3164363,47424.0,47418.0,0.19931765]
[1633101636554,0.0985153,47424.0,47419.0,0.33329547]
[1633101636752,0.0985153,47424.0,47418.0,0.31085666]
[1633101636753,0.0846772,47423.0,47418.0,0.31085666]
[1633101636957,0.0001205,47420.0,47419.0,0.210812]
[1633101637153,0.0985153,47424.0,47419.0,0.210812]
[1633101637355,4.991557,47425.0,47420.0,0.38251735]
[1633101637754,4.991557,47425.0,47421.0,0.316197]
[1633101637755,4.569947,47425.0,47421.0,0.316197]
[1633101637955,4.569947,47425.0,47420.0,0.38251735]
[1633101637956,4.569947,47425.0,47420.0,0.48297546]
[1633101637957,0.11312627,47424.0,47420.0,0.48297546]
[1633101638152,4.32310379,47425.0,47420.0,0.48297546]
[1633101638414,4.22743327,47425.0,47423.0,0.18979772]
[1633101638553,4.22743327,47425.0,47424.0,0.34228167]
[1633101638759,3.83583727,47425.0,47424.0,0.34228167]
[1633101638952,3.83583727,47425.0,47423.0,0.09922144]
[1633101638954,3.83589751,47425.0,47423.0,0.09922144]
[1633101639155,3.83589751,47425.0,47423.0,0.09104032]
[1633101639156,3.41432151,47425.0,47423.0,0.09104032]
[1633101639358,2.80942595,47425.0,47424.0,2.11602041]
[1633101639559,0.0014,47430.0,47427.0,1.2]
[1633101639758,0.0008,47442.0,47428.0,0.53418084]
[1633101639959,1.0514,47453.0,47435.0,0.00125775]
[1633101639962,0.0006,47448.0,47435.0,0.00125775]
[1633101640158,1.0514,47453.0,47437.0,0.210724]
[1633101640160,0.34616928,47449.0,47437.0,0.210724]
[1633101640361,0.2631878,47439.0,47437.0,0.210724]
[1633101640758,0.23494363,47440.0,47437.0,0.30491805]
[1633101640957,0.23494363,47440.0,47432.0,0.01988147]
[1633101640958,0.0927805,47439.0,47432.0,0.01988147]
[1633101641156,0.0927805,47439.0,47434.0,0.04912448]
[1633101641362,0.33764282,47449.0,47438.0,0.00120458]
[1633101641363,0.003,47449.0,47438.0,0.00120458]
[1633101641560,0.003,47449.0,47448.0,0.00121402]
[1633101641761,0.003,47449.0,47448.0,0.01981402]
[1633101641957,0.003,47449.0,47437.0,0.00125467]
[1633101642159,0.0508,47450.0,47438.0,0.0186]
[1633101642160,0.0488,47450.0,47438.0,0.0186]
[1633101642363,0.0008,47455.0,47449.0,0.40185125]
[1633101642365,0.0002,47454.0,47449.0,0.40185125]
[1633101642557,0.0006,47461.0,47453.0,0.00127962]
[1633101642559,0.0004,47456.0,47453.0,0.00127962]
[1633101642758,0.0006,47461.0,47455.0,0.00120292]
[1633101642958,0.0006,47461.0,47456.0,0.0186]
[1633101642960,0.10932291,47457.0,47456.0,0.0186]
[1633101643160,0.10932291,47457.0,47449.0,0.400639]
[1633101643161,0.10932291,47457.0,47451.0,0.0186]
[1633101643162,0.17630774,47457.0,47451.0,0.0186]
[1633101643360,0.0006,47461.0,47457.0,0.09597411]
[1633101643361,0.25461554,47459.0,47457.0,0.09597411]
[1633101643555,0.25461554,47459.0,47456.0,0.00122641]
[1633101643556,0.25461554,47459.0,47456.0,0.21064]
[1633101643558,0.009831,47459.0,47456.0,0.21064]
[1633101643955,0.00038532,47457.0,47456.0,0.21064]
[1633101644159,0.00038532,47457.0,47456.0,0.31233082]
[1633101644358,0.0008,47463.0,47456.0,0.66057257]
[1633101644359,0.0002,47463.0,47456.0,0.66057257]
[1633101644566,0.0002,47463.0,47457.0,0.10567247]
[1633101644766,0.0002,47463.0,47458.0,0.0186]
[1633101644767,0.34583793,47462.0,47458.0,0.0186]
[1633101644964,0.34583793,47462.0,47457.0,0.0186]
[1633101644965,0.2232,47460.0,47457.0,0.0186]
[1633101645165,0.2232,47460.0,47445.0,0.0186]
[1633101645166,0.02969831,47449.0,47445.0,0.0186]
[1633101645367,0.02969831,47449.0,47441.0,0.00125774]
[1633101645567,0.02969831,47449.0,47448.0,8.431e-05]
[1633101645766,0.30421318,47451.0,47448.0,8.431e-05]
[1633101646161,0.21539808,47451.0,47450.0,6.022e-05]
[1633101646765,0.00125445,47461.0,47451.0,0.09801]
[1633101646973,0.0008,47465.0,47452.0,0.53291134]
[1633101647164,0.0008,47465.0,47454.0,0.00121766]
[1633101647166,0.09305344,47463.0,47454.0,0.00121766]
[1633101647371,0.0012,47470.0,47454.0,0.00121766]
[1633101647372,0.0002,47475.0,47471.0,1.59004906]
[1633101647563,0.0002,47475.0,47474.0,0.00248699]
[1633101647769,0.0002,47475.0,47474.0,0.30888557]
[1633101647964,0.0002,47475.0,47474.0,0.00122296]
[1633101648164,0.0002,47475.0,47472.0,0.210517]
[1633101648166,0.37319703,47475.0,47472.0,0.210517]
[1633101648370,0.0002,47475.0,47472.0,0.210517]
[1633101648567,0.00020462,47474.0,47472.0,0.210517]
[1633101648766,0.00224662,47476.0,47472.0,0.242517]
[1633101648767,0.19479502,47476.0,47472.0,0.242517]
[1633101649066,0.33672303,47475.0,47472.0,0.242517]
[1633101649263,0.18479502,47476.0,47472.0,0.242517]
[1633101649264,0.3011992,47474.0,47472.0,0.242517]
[1633101649462,0.3011992,47474.0,47465.0,0.00126139]
[1633101649464,0.01718228,47470.0,47465.0,0.00126139]
[1633101649668,0.01718228,47470.0,47463.0,0.12392266]
[1633101649866,0.07095912,47469.0,47463.0,0.12392266]
[1633101650066,0.07095912,47469.0,47458.0,0.36]
[1633101650067,0.24655366,47464.0,47458.0,0.36]
[1633101650263,0.24655366,47464.0,47461.0,0.21064]
[1633101650265,0.29260581,47463.0,47461.0,0.21064]
[1633101650465,0.41111455,47463.0,47461.0,0.21064]
[1633101650867,0.34175718,47462.0,47461.0,0.21064]
[1633101651263,0.44711455,47463.0,47461.0,0.00013244]
[1633101651664,0.44711455,47463.0,47458.0,0.36]
[1633101651665,0.32860581,47463.0,47462.0,0.00138043]
[1633101651861,0.32860581,47463.0,47462.0,0.19996486]
[1633101652065,0.32860581,47463.0,47462.0,0.19870483]
[1633101652066,0.31860581,47463.0,47462.0,0.19870483]
[1633101652265,0.31860581,47463.0,47462.0,0.29454681]
[1633101652267,0.30340581,47463.0,47462.0,0.29454681]
[1633101652467,0.30340581,47463.0,47462.0,0.19870483]
[1633101652665,0.30340581,47463.0,47458.0,0.36]
[1633101652866,0.3035309,47463.0,47462.0,0.035]
[1633101653267,0.5214519,47463.0,47462.0,0.035]
[1633101653466,0.5214519,47463.0,47446.0,0.14389526]
[1633101653470,0.08082772,47450.0,47446.0,0.14389526]
[1633101653670,0.00126756,47447.0,47442.0,0.210676]
[1633101653869,0.00126756,47447.0,47443.0,0.00122103]
[1633101654269,0.08082772,47450.0,47443.0,0.00122103]
[1633101654271,0.29407426,47446.0,47443.0,0.00122103]
[1633101654473,0.29407426,47446.0,47444.0,0.09957884]
[1633101654770,0.29407426,47446.0,47445.0,0.14306962]
[1633101654771,0.30907426,47446.0,47445.0,0.14306962]
[1633101655370,0.30907426,47446.0,47445.0,0.24229067]
[1633101655568,0.08546574,47446.0,47445.0,0.24229067]
[1633101655766,0.08546574,47446.0,47443.0,0.03422103]
[1633101655968,0.37352847,47445.0,47443.0,0.033]
[1633101656431,0.37352847,47445.0,47444.0,0.0002168]
[1633101656569,0.00128384,47445.0,47444.0,0.0002168]
[1633101656772,0.00128384,47445.0,47429.0,0.210775]
[1633101656773,0.78987294,47445.0,47429.0,0.210775]
[1633101656969,0.78987294,47445.0,47443.0,0.022]
[1633101656970,0.80774218,47445.0,47443.0,0.022]
[1633101657171,0.81226394,47444.0,47443.0,0.022]
[1633101657472,0.78126321,47444.0,47443.0,0.022]
[1633101657670,0.53831513,47444.0,47443.0,0.022]
[1633101658268,0.53952285,47444.0,47430.0,0.210778]
[1633101658469,0.53952285,47444.0,47430.0,0.21205131]
[1633101658471,0.33486288,47437.0,47430.0,0.21205131]
[1633101658672,0.09719413,47444.0,47430.0,0.21205131]
[1633101658673,0.09719413,47444.0,47436.0,0.00123609]
[1633101658870,0.09719413,47444.0,47437.0,0.09463508]
[1633101658871,0.037,47444.0,47437.0,0.09463508]
[1633101659073,0.0208,47446.0,47443.0,0.0012173]
[1633101659276,0.0208,47446.0,47444.0,0.40042329]
[1633101659471,0.7328,47451.0,47445.0,0.10170219]
[1633101659472,0.65113244,47451.0,47445.0,0.10170219]
[1633101659670,0.65113244,47451.0,47444.0,0.40042329]
[1633101659671,0.65113244,47451.0,47444.0,0.21066]
[1633101659673,0.37466811,47450.0,47444.0,0.21066]
[1633101659871,0.07217751,47446.0,47444.0,0.21066]
[1633101660073,0.07345397,47446.0,47444.0,0.21066]
[1633101660469,0.00127646,47446.0,47444.0,0.21066]
[1633101660871,0.00127646,47446.0,47444.0,0.21666]
[1633101660872,0.03227646,47446.0,47444.0,0.21666]
[1633101662472,0.03227646,47446.0,47444.0,0.006]
[1633101662873,0.03227646,47446.0,47444.0,0.021]
[1633101663477,0.00010955,47445.0,47444.0,0.021]
[1633101664273,0.00010955,47445.0,47441.0,0.21073]
[1633101664476,0.21349374,47442.0,47441.0,0.21073]
[1633101664877,0.00010955,47445.0,47441.0,0.23873]
[1633101664878,0.03010955,47445.0,47441.0,0.23873]